bitfinex-derivatives/quotes_SOLF0:USTF0_20250909
["timestamp","ask_amount","ask_price","bid_price","bid_amount"]
[1757413975282,2.21,218.41,218.37,9.08251925]
[1757413976187,2.21,218.41,218.37,1.92251925]
[1757413976488,2.21,218.41,218.37,9.08251925]
[1757413977483,4.13251925,218.41,218.34,1.92251925]
[1757413977686,4.13251925,218.41,218.32,1.92251925]
[1757413978589,4.13251925,218.41,218.34,1.92251925]
[1757413980589,114.3,218.42,218.3,7.16]
[1757413980590,2.21,218.38,218.3,7.16]
[1757413980785,2.21,218.38,218.31,1.92251925]
[1757413983086,4.13251925,218.38,218.31,1.92251925]
[1757413983290,4.13251925,218.38,218.3,9.08251925]
[1757413983885,4.13251925,218.38,218.31,1.92251925]
[1757413984088,2.21,218.38,218.31,1.92251925]
[1757413984285,2.21,218.38,218.3,7.16]
[1757413984490,2.21,218.34,218.26,1.92251925]
[1757413984687,1.92251925,218.31,218.24,7.16]
[1757413984990,2.21,218.3,218.23,1.92251925]
[1757413985991,1.92251925,218.29,218.2,7.16]
[1757413986182,1.92251925,218.29,218.2,9.08251925]
[1757413986485,1.92251925,218.29,218.22,1.92251925]
[1757413987083,1.92251925,218.29,218.09,52.38]
[1757413987084,2.21,218.38,218.26,1.92251925]
[1757413987287,1.92251925,218.34,218.26,1.92251925]
[1757413987486,4.13251925,218.34,218.26,1.92251925]
[1757413988289,1.92251925,218.32,218.23,9.08251925]
[1757413988488,2.21,218.31,218.23,9.08251925]
[1757413988688,1.92251925,218.3,218.23,9.08251925]
[1757413989305,2.21,218.31,218.23,9.08251925]
[1757413990198,2.21,218.38,218.3,7.16]
[1757413990499,2.21,218.38,218.35,1.92251925]
[1757413990699,307.94,218.39,218.35,9.08251925]
[1757413990900,2.21,218.42,218.35,1.92251925]
[1757413991100,2.21,218.4,218.31,1.92251925]
[1757413991295,116.63,218.4,218.31,1.92251925]
[1757413991492,2.21,218.38,218.31,1.92251925]
[1757413991695,2.21,218.36,218.29,1.92251925]
[1757413992100,114.48,218.36,218.31,1.92251925]
[1757413992401,114.48,218.36,218.32,7.16]
[1757413992996,116.69,218.36,218.32,7.16]
[1757413993195,2.21,218.35,218.31,1.92251925]
[1757413994002,2.23,218.35,218.28,9.08251925]
[1757413994493,2.23,218.35,218.3,1.92251925]
[1757413994698,2.23,218.35,218.3,9.68251925]
[1757413995100,4.15251925,218.4,218.32,1.92251925]
[1757413995298,27.06,218.39,218.32,1.92251925]
[1757413996604,71.55251925,218.4,218.32,1.92251925]
[1757413996799,4.15251925,218.4,218.33,1.92251925]
[1757413997000,2.23,218.4,218.33,1.92251925]
[1757413997302,2.23,218.4,218.35,9.68251925]
[1757413997498,1.92251925,218.43,218.35,1.92251925]
[1757413997702,83.16251925,218.43,218.35,9.68251925]
[1757413998097,81.24,218.43,218.35,9.68251925]
[1757413998304,81.24,218.43,218.37,1.92251925]
[1757413999102,2.23,218.44,218.37,1.92251925]
[1757413999301,2.23,218.44,218.39,9.68251925]
[1757414000101,2.23,218.44,218.4,7.76]
[1757414000308,2.23,218.44,218.39,1.92251925]
[1757414000608,114.46,218.46,218.39,9.68251925]
[1757414000807,2.23,218.45,218.39,9.68251925]
[1757414001106,2.23,218.45,218.39,1.92251925]
[1757414001704,2.23,218.43,218.36,1.92251925]
[1757414003499,2.23,218.45,218.3,7.76]
[1757414003700,116.38251925,218.46,218.31,3.65322823]
[1757414003701,2.23,218.38,218.31,3.65322823]
[1757414003899,2.23,218.38,218.3,7.76]
[1757414003900,47.97,218.38,218.3,7.76]
[1757414004102,47.97,218.38,218.3,9.68251925]
[1757414005407,2.23,218.36,218.28,1.92251925]
[1757414006305,2.23,218.36,218.26,7.76]
[1757414007009,2.23,218.41,218.28,3.00259154]
[1757414007210,47.74,218.4,218.3,7.76]
[1757414008907,2.23,218.41,218.3,7.76]
[1757414009111,2.23,218.41,218.32,7.76]
[1757414013316,87.44,218.42,218.28,14.88509154]
[1757414013509,2.23,218.41,218.28,14.88509154]
[1757414013911,2.23,218.4,218.28,7.76]
[1757414014111,2.23,218.37,218.18,7.76]
[1757414014314,101.19,218.42,218.2,7.76]
[1757414014315,2.23,218.34,218.2,7.76]
[1757414014514,2.23,218.34,218.21,7.77944792]
[1757414014811,2.23,218.34,218.2,7.76]
[1757414015009,3.00259154,218.35,218.2,7.76]
[1757414015010,2.23,218.33,218.2,7.76]
[1757414015212,2.23,218.33,218.21,3.65628953]
[1757414015412,5.32,218.32,218.2,7.76]
[1757414015621,5.32,218.32,218.21,3.65570977]
[1757414015819,2.23,218.33,218.2,7.76]
[1757414016120,5.32,218.32,218.2,7.76]
[1757414016512,2.23,218.31,218.2,7.76]
[1757414016712,2.23,218.31,218.2,11.8839]
[1757414017916,2.23,218.31,218.2,4.1239]
[1757414018224,3.00259154,218.33,218.24,7.76]
[1757414018225,5.32,218.33,218.24,7.76]
[1757414028932,5.32,218.33,218.14,3.83297473]
[1757414029236,5.32,218.33,218.08,327.56586867]
[1757414029237,2.21,218.3,218.18,7.63]
[1757414029422,2.21,218.3,218.2,7.63]
[1757414029629,5.32,218.33,218.22,7.63]
[1757414029927,5.32,218.33,218.24,7.63]
[1757414035635,2.21,218.32,218.24,7.63]
[1757414047143,24.88,218.34,218.24,7.63]
[1757414047643,24.88,218.34,218.24,11.7532]
[1757414047843,24.88,218.34,218.25,7.63]
[1757414048244,61.03,218.35,218.25,7.63]
[1757414049241,2.21,218.34,218.25,7.63]
[1757414056050,3.00259154,218.29,218.21,7.62]
[1757414056245,3.00259154,218.29,218.12,3.00259154]
[1757414056545,3.00259154,218.26,218.14,7.62]
[1757414056750,9.98259154,218.26,218.16,7.62]
[1757414057050,9.98259154,218.26,218.17,3.66666252]
[1757414057250,9.98259154,218.26,218.18,3.66666252]
[1757414057445,9.98259154,218.26,218.12,3.00259154]
[1757414057446,2.2,218.19,218.12,7.62]
[1757414057645,2.2,218.19,218.13,3.66833626]
[1757414057847,2.2,218.19,218.12,7.62]
[1757414058052,2.2,218.19,218.13,3.6683021]
[1757414058354,28.16,218.22,218.15,7.62]
[1757414060652,2.2,218.2,218.05,3.00259154]
[1757414060952,2.2,218.2,218.07,7.62]
[1757414061150,2.2,218.2,218.09,7.62]
[1757414061452,2.2,218.2,218.11,7.62]
[1757414061652,2.2,218.2,218.12,3.66167189]
[1757414061853,2.2,218.2,218.11,7.62]
[1757414062053,2.2,218.2,218.12,3.65968689]
[1757414062252,2.2,218.2,218.11,7.62]
[1757414063048,24.62,218.19,218.11,7.62]
[1757414063248,61.24,218.2,218.11,7.62]
[1757414064150,2.2,218.2,218.11,7.62]
[1757414068355,1.92482716,218.17,218.11,7.62]
[1757414069158,1.92482716,218.18,218.11,7.62]
[1757414070558,2.2,218.2,218.11,7.62]
[1757414070758,1.92482716,218.17,218.11,7.62]
[1757414071257,2.2,218.2,218.11,7.62]
[1757414071258,1.92482716,218.18,218.11,7.62]
[1757414071763,2.2,218.2,218.11,7.62]
[1757414072066,1.92482716,218.18,218.11,7.62]
[1757414078965,308.04,218.26,218.13,7.62]
[1757414079267,1.92482716,218.2,218.13,7.62]
[1757414086480,2.2,218.21,218.13,7.62]
[1757414086679,1.92482716,218.2,218.13,7.62]
[1757414086880,4.14482716,218.2,218.13,7.62]
[1757414091784,1.92482716,218.2,218.13,7.62]
[1757414093388,113.62,218.22,218.13,7.62]
[1757414093578,1.92482716,218.2,218.13,7.62]
[1757414094488,113.62,218.22,218.08,7.54]
[1757414094687,2.22,218.17,218.08,7.54]
[1757414094877,1.92482716,218.15,218.08,7.54]
[1757414095083,1.92482716,218.16,218.08,7.54]
[1757414095276,1.92482716,218.19,218.1,7.54]
[1757414095487,1.92482716,218.19,218.12,7.54]
[1757414095878,1.92482716,218.2,218.12,7.54]
[1757414100392,1.92482716,218.2,218.13,3.66928232]
[1757414100594,1.92482716,218.2,218.12,7.54]
[1757414100793,2.22,218.21,218.13,3.66928232]
[1757414100994,117.90482716,218.21,218.15,7.54]
[1757414102297,117.88482716,218.21,218.15,7.54]
[1757414102692,2.22,218.24,218.15,9.46482716]
[1757414102892,115.98,218.24,218.17,7.54]
[1757414103090,115.98,218.24,218.17,1.92482716]
[1757414103294,115.98,218.24,218.18,7.54]
[1757414103495,113.76,218.24,218.18,7.54]
[1757414104293,115.68482716,218.24,218.18,7.54]
[1757414104798,115.98,218.24,218.18,7.54]
[1757414104993,115.94,218.24,218.19,3.6708691]
[1757414105190,117.86482716,218.24,218.17,7.54]
[1757414105392,117.86482716,218.24,218.18,3.66964313]
[1757414105592,2.22,218.23,218.19,11.20964313]
[1757414105793,2.22,218.23,218.19,7.54]
[1757414106089,115.62482716,218.24,218.17,7.54]
[1757414106292,115.62482716,218.24,218.18,3.66962587]
[1757414106498,308.04,218.26,218.17,7.54]
[1757414106692,113.7,218.25,218.19,7.54]
[1757414106892,309.96482716,218.26,218.19,7.54]
[1757414107095,423.64482716,218.26,218.19,9.46482716]
[1757414107293,423.64482716,218.26,218.2,7.54]
[1757414107493,115.60482716,218.26,218.2,7.54]
[1757414108307,115.92,218.27,218.2,7.54]
[1757414108694,143.57321402,218.28,218.21,6.04872716]
[1757414108695,1.92482716,218.28,218.21,6.04872716]
[1757414108898,115.62482716,218.28,218.22,7.54]
[1757414109701,113.7,218.28,218.22,7.54]
[1757414110504,115.9,218.29,218.22,9.46482716]
[1757414110805,115.9,218.29,218.22,1.92482716]
[1757414110999,115.9,218.29,218.23,7.54]
[1757414114105,1.92482716,218.28,218.2,1.92482716]
[1757414114312,2.19,218.27,218.2,1.92482716]
[1757414115508,2.19,218.27,218.21,7.67]
[1757414115709,2.19,218.27,218.22,1.92482716]
[1757414116406,2.19,218.27,218.23,7.67]
[1757414116609,2.19,218.27,218.22,1.92482716]
[1757414117306,2.19,218.27,218.23,7.67]
[1757414117611,113.68,218.29,218.22,1.92482716]
[1757414117807,113.68,218.29,218.23,7.67]
[1757414118309,115.87,218.29,218.22,9.59482716]
[1757414120113,2.19,218.29,218.22,9.59482716]
[1757414122113,2.19,218.29,218.23,7.67]
[1757414128105,1.92482716,218.31,218.24,1.92482716]
[1757414128410,2.19,218.32,218.25,7.67]
[1757414129317,2.19,218.3,218.16,7.67]
[1757414129614,2.19,218.3,218.18,7.67]
[1757414130114,116.25,218.3,218.18,7.67]
[1757414132812,114.06,218.3,218.18,7.67]
[1757414133017,2.19,218.29,218.18,7.67]
[1757414133713,2.19,218.29,218.2,4.124]
[1757414134012,2.19,218.29,218.21,7.67]
[1757414134917,2.19,218.29,218.22,7.67]
[1757414144427,2.21,218.24,218.16,7.63]
[1757414144628,2.21,218.23,218.16,7.63]
[1757414147430,2.21,218.24,218.16,7.63]
[1757414147729,2.21,218.23,218.16,7.63]
[1757414148726,2.21,218.24,218.16,7.63]
[1757414148924,3.00339477,218.25,218.16,7.63]
[1757414149122,2.21,218.23,218.16,7.63]
[1757414149323,2.21,218.24,218.16,7.63]
[1757414153225,146.4442245,218.29,218.16,7.63]
[1757414153431,5.21339477,218.28,218.18,7.63]
[1757414154030,5.21339477,218.28,218.2,7.63]
[1757414154232,2.21,218.28,218.2,7.63]
[1757414154431,5.21339477,218.28,218.2,7.63]
[1757414157934,2.21,218.28,218.2,7.63]
[1757414163139,2.21,218.33,218.2,7.63]
[1757414163341,114.1,218.32,218.2,7.63]
[1757414163936,2.21,218.31,218.22,7.63]
[1757414164835,2.21,218.31,218.22,11.7537]
[1757414165032,2.21,218.31,218.23,7.63]
[1757414169438,116.19,218.31,218.23,7.63]
[1757414169937,113.98,218.31,218.23,7.63]
[1757414170136,308.2,218.36,218.26,7.63]
[1757414170542,308.2,218.36,218.28,3.00339477]
[1757414170742,308.2,218.36,218.29,7.63]
[1757414172345,2.21,218.35,218.25,7.63]
[1757414172840,308.2,218.36,218.25,7.63]
[1757414173340,2.23,218.34,218.25,7.63]
[1757414173740,3.00339477,218.35,218.25,7.63]
[1757414174043,2.23,218.34,218.25,7.63]
[1757414174238,2.23,218.29,218.16,3.00339477]
[1757414174538,2.23,218.29,218.18,7.13]
[1757414174539,113.96,218.28,218.18,7.13]
[1757414176041,2.23,218.27,218.18,7.13]
[1757414177535,116.96339477,218.28,218.18,7.13]
[1757414177734,116.96339477,218.28,218.14,7.13]
[1757414177938,2.23,218.24,218.14,7.13]
[1757414178136,2.23,218.23,218.14,7.13]
[1757414178436,113.94,218.22,218.14,7.13]
[1757414179843,2.23,218.23,218.14,7.13]
[1757414180143,116.15,218.23,218.14,7.13]
[1757414180344,116.11,218.23,218.14,7.13]
[1757414181042,113.88,218.23,218.14,7.13]
[1757414181246,2.23,218.22,218.14,7.13]
[1757414181444,2.23,218.22,218.09,3.00339477]
[1757414181644,139.31092164,218.31,218.16,7.13]
[1757414181645,2.23,218.27,218.16,7.13]
[1757414181949,113.86,218.26,218.16,7.13]
[1757414183152,2.23,218.27,218.16,7.13]
[1757414183348,113.86,218.26,218.16,7.13]
[1757414184342,2.23,218.25,218.16,7.13]
[1757414184549,113.86,218.26,218.16,7.13]
[1757414184949,2.23,218.2,218.08,7.13]
[1757414185150,2.23,218.2,218.1,7.13]
[1757414185451,2.23,218.2,218.11,3.66003452]
[1757414185650,2.23,218.2,218.1,7.13]
[1757414185850,2.23,218.2,218.11,3.65954035]
[1757414186050,2.23,218.2,218.12,3.65954035]
[1757414186252,2.23,218.2,218.13,3.65954035]
[1757414186456,2.23,218.2,218.1,7.13]
[1757414186657,2.23,218.2,218.11,3.65887018]
[1757414186855,2.23,218.2,218.12,3.65887018]
[1757414187151,2.23,218.2,218.13,3.65887018]
[1757414187358,2.23,218.21,218.1,7.13]
[1757414187555,2.23,218.2,218.11,3.65828796]
[1757414187756,2.23,218.2,218.12,3.65828796]
[1757414187951,2.23,218.2,218.13,3.65828796]
[1757414188158,14.02,218.21,218.13,7.13]
[1757414190456,15.94428394,218.21,218.13,9.05428394]
[1757414191460,14.02,218.21,218.13,9.05428394]
[1757414191859,4.15428394,218.22,218.15,1.92428394]
[1757414192153,2.23,218.21,218.13,7.13]
[1757414192353,1.92428394,218.2,218.14,3.6564746]
[1757414192549,2.23,218.19,218.13,7.13]
[1757414192754,1.92428394,218.2,218.14,3.65647494]
[1757414192953,4.15428394,218.2,218.13,7.13]
[1757414193154,4.15428394,218.2,218.14,3.6564746]
[1757414193449,4.15428394,218.2,218.13,7.13]
[1757414193649,4.15428394,218.2,218.14,3.65630686]
[1757414193851,4.15428394,218.2,218.13,7.13]
[1757414194059,4.15428394,218.2,218.14,3.65630714]
[1757414194257,4.15428394,218.2,218.13,7.13]
[1757414194456,4.15428394,218.2,218.14,3.65613539]
[1757414194657,4.15428394,218.2,218.13,7.13]
[1757414195256,2.23,218.19,218.13,7.13]
[1757414195462,1.92428394,218.16,218.08,1.92428394]
[1757414195664,1.92428394,218.16,218.09,3.65611373]
[1757414195865,1.92428394,218.16,218.1,3.65611373]
[1757414196056,1.92428394,218.16,218.08,1.92428394]
[1757414196361,1.92428394,218.16,218.09,10.78621214]
[1757414196556,1.92428394,218.16,218.09,7.13]
[1757414199164,1.92428394,218.16,218.1,0.0311295]
[1757414203965,2.23,218.17,218.11,7.0]
[1757414204671,2.21,218.15,218.11,7.0]
[1757414206669,1.92428394,218.18,218.11,7.0]
[1757414207472,4.13428394,218.19,218.11,7.0]
[1757414214972,4.13428394,218.19,218.11,8.92428394]
[1757414216070,4.13428394,218.19,218.12,7.0]
[1757414218668,153.07092164,218.31,218.16,7.0]
[1757414218669,139.31092164,218.31,218.16,7.0]
[1757414218975,1.92428394,218.24,218.17,1.92428394]
[1757414219176,1.92428394,218.33,218.24,7.0]
[1757414219370,2.21,218.34,218.25,1.92428394]
[1757414219570,4.13428394,218.34,218.25,1.92428394]
[1757414220670,2.21,218.34,218.25,1.92428394]
[1757414220875,2.21,218.34,218.27,1.92428394]
[1757414222272,4.13428394,218.34,218.24,7.0]
[1757414222472,4.13428394,218.34,218.25,1.92428394]
[1757414223578,2.21,218.34,218.27,8.92428394]
[1757414231784,2.21,218.34,218.28,1.92428394]
[1757414234390,2.21,218.34,218.28,9.40428394]
[1757414235494,2.21,218.34,218.28,7.48]
[1757414235685,2.21,218.34,218.26,1.92428394]
[1757414235686,2.21,218.3,218.22,1.92428394]
[1757414235884,2.21,218.3,218.21,9.40428394]
[1757414236088,1.92428394,218.29,218.21,9.40428394]
[1757414237095,1.92428394,218.29,218.21,7.48]
[1757414237396,1.92428394,218.29,218.21,9.40428394]
[1757414240490,1.92428394,218.29,218.22,7.48]
[1757414240788,2.21,218.3,218.22,7.48]
[1757414240993,3.08,218.32,218.24,7.48]
[1757414241193,1.92428394,218.31,218.24,7.48]
[1757414246601,51.21,218.33,218.24,7.48]
[1757414246899,1.92428394,218.31,218.24,7.48]
[1757414250401,51.21,218.33,218.24,7.48]
[1757414251197,2.21,218.33,218.24,7.48]
[1757414254401,95.54,218.36,218.24,7.48]
[1757414255398,95.54,218.36,218.15,64.1674]
[1757414255399,3.00378976,218.3,218.16,7.48]
[1757414255603,2.21,218.29,218.16,7.48]
[1757414255799,2.21,218.28,218.16,7.48]
[1757414256001,2.21,218.26,218.16,7.48]
[1757414263811,2.22,218.26,218.16,7.48]
[1757414266710,2.22,218.26,218.17,7.33]
[1757414267814,24.68,218.28,218.14,7.33]
[1757414269115,24.68,218.28,218.2,7.33]
[1757414271513,24.68,218.28,218.2,11.454]
[1757414271714,24.68,218.28,218.21,7.33]
[1757414272318,24.68,218.28,218.22,4.1236]
[1757414272921,24.68,218.28,218.23,7.33]
[1757414273625,24.68,218.28,218.22,4.1236]
[1757414273826,26.9,218.28,218.22,7.33]
[1757414277625,24.68,218.28,218.22,7.33]
[1757414279929,24.68,218.28,218.22,11.4536]
[1757414280522,26.9,218.28,218.22,7.33]
[1757414282131,24.68,218.28,218.22,7.33]
[1757414282332,127.94153257,218.31,218.22,7.33]
[1757414283434,127.94153257,218.31,218.24,3.00378976]
[1757414283631,127.94153257,218.31,218.25,7.33]
[1757414284023,130.16153257,218.31,218.27,7.33]
[1757414288832,127.94153257,218.31,218.27,7.33]
[1757414289336,2.22,218.3,218.27,7.33]
[1757414291633,2.22,218.3,218.26,0.03343353]
[1757414291840,130.16153257,218.31,218.27,7.33]
[1757414292034,2.22,218.3,218.26,7.36343353]
[1757414292233,2.22,218.3,218.27,7.33]
[1757414293036,127.9709025,218.31,218.27,7.33]
[1757414293338,127.9709025,218.31,218.26,0.03343353]
[1757414293538,127.9709025,218.31,218.27,7.68]
[1757414293837,130.1909025,218.31,218.27,7.68]
[1757414294229,130.1909025,218.31,218.26,0.03343353]
[1757414294539,130.1909025,218.31,218.27,7.68]
[1757414294737,2.24936993,218.31,218.27,7.68]
[1757414295232,2.24936993,218.31,218.26,0.03343353]
[1757414295438,2.24936993,218.31,218.27,7.68]
[1757414299036,0.02936993,218.31,218.27,7.68]
[1757414299545,0.02936993,218.31,218.27,10.68378976]
[1757414299745,0.02936993,218.31,218.28,7.68]
[1757414300642,0.02936993,218.31,218.27,3.00378976]
[1757414300844,0.02936993,218.31,218.29,4.1223]
[1757414301141,0.02936993,218.31,218.3,7.68]
[1757414308442,2.22,218.41,218.3,7.68]
[1757414308646,2.22,218.41,218.34,7.68]
[1757414309644,2.22,218.41,218.35,0.03461092]
[1757414312351,4.14072094,218.41,218.35,0.03461092]
[1757414313248,2.22,218.41,218.35,1.95533186]
[1757414314248,2.22,218.41,218.35,0.03461092]
[1757414322662,2.22,218.41,218.35,7.71461092]
[1757414322866,2.22,218.43,218.36,1.92072094]
[1757414324065,2.22,218.43,218.36,9.08072094]
[1757414324563,2.22,218.43,218.36,7.16]
[1757414324763,2.22,218.43,218.37,1.92072094]
[1757414326367,1.92072094,218.42,218.35,0.03461092]
[1757414326568,2.21,218.41,218.35,0.03461092]
[1757414327664,2.21,218.43,218.4,7.16]
[1757414327869,113.56,218.44,218.39,1.92072094]
[1757414328165,2.21,218.43,218.39,1.92072094]
[1757414328369,2.21,218.43,218.39,1.95475166]
[1757414329171,113.56,218.44,218.39,1.95475166]
[1757414329470,2.21,218.43,218.39,1.95475166]
[1757414329871,2.21,218.43,218.39,0.03403072]
[1757414330573,113.56,218.44,218.39,0.03403072]
[1757414330772,2.21,218.43,218.39,0.03403072]
[1757414331272,113.56,218.44,218.39,0.03403072]
[1757414332672,2.21,218.43,218.39,0.03403072]
[1757414333073,113.56,218.44,218.39,0.03403072]
[1757414333266,2.21,218.43,218.39,0.03403072]
[1757414334572,113.56,218.44,218.39,0.03403072]
[1757414336377,2.21,218.43,218.39,7.19403072]
[1757414336576,2.21,218.43,218.4,7.16]
[1757414341177,115.77,218.44,218.39,1.95475166]
[1757414341377,115.77,218.44,218.4,7.16]
[1757414341578,115.77,218.44,218.39,1.95475166]
[1757414341878,115.77,218.44,218.4,7.16]
[1757414342085,115.77,218.44,218.41,9.08072094]
[1757414342276,2.21,218.48,218.41,9.08072094]
[1757414342472,5.09460143,218.51,218.39,0.03403072]
[1757414342473,2.21,218.51,218.44,7.16]
[1757414342875,2.21,218.51,218.45,1.92072094]
[1757414343078,2.21,218.5,218.45,0.0312399]
[1757414343289,2.21,218.48,218.45,0.0312399]
[1757414344090,2.21,218.46,218.45,0.0312399]
[1757414346087,2.21,218.5,218.45,0.0312399]
[1757414346381,115.38072094,218.51,218.45,0.0312399]
[1757414346781,2.21,218.5,218.45,0.0312399]
[1757414347178,115.38072094,218.51,218.45,0.0312399]
[1757414347388,2.21,218.5,218.45,0.0312399]
[1757414347581,113.46,218.51,218.45,0.0312399]
[1757414347881,115.67,218.51,218.45,0.0312399]
[1757414348486,115.67,218.51,218.48,9.08072094]
[1757414348487,2.21,218.51,218.48,9.08072094]
[1757414348787,2.21,218.56,218.48,1.92072094]
[1757414348983,37.83,218.56,218.48,1.92072094]
[1757414349375,37.83,218.56,218.5,0.03360995]
[1757414350286,35.62,218.56,218.5,0.03360995]
[1757414350584,2.21,218.55,218.5,0.03360995]
[1757414350976,35.62,218.56,218.5,0.03360995]
[1757414351376,2.21,218.55,218.5,0.03360995]
[1757414351782,2.21,218.56,218.5,7.19360995]
[1757414352681,1.92072094,218.56,218.5,0.03360995]
[1757414352887,2.21,218.55,218.5,0.03360995]
[1757414353383,1.92072094,218.56,218.5,0.03360995]
[1757414353588,2.2,218.55,218.5,0.03360995]
[1757414354087,1.92072094,218.56,218.5,0.03360995]
[1757414355284,2.2,218.55,218.5,0.03360995]
[1757414355485,1.92072094,218.56,218.5,0.03360995]
[1757414355785,2.2,218.55,218.5,0.03360995]
[1757414356491,1.92072094,218.56,218.5,0.03360995]
[1757414356684,2.2,218.55,218.5,0.03360995]
[1757414356885,1.92072094,218.56,218.5,0.03360995]
[1757414357378,2.2,218.55,218.5,0.03360995]
[1757414357789,1.92072094,218.56,218.5,0.03360995]
[1757414357982,2.2,218.55,218.5,0.03360995]
[1757414358687,1.92072094,218.56,218.5,0.03360995]
[1757414359080,2.2,218.57,218.5,0.03360995]
[1757414359283,4.12072094,218.57,218.5,0.03360995]
[1757414360387,117.52072094,218.57,218.5,0.03360995]
[1757414360588,115.6,218.57,218.5,0.03360995]
[1757414360781,4.12072094,218.57,218.5,0.03360995]
[1757414361187,117.52072094,218.57,218.5,0.03360995]
[1757414362890,115.6,218.57,218.5,0.03360995]
[1757414363187,115.6,218.57,218.5,1.95433089]
[1757414364581,2.2,218.57,218.5,1.95433089]
[1757414366884,2.2,218.57,218.51,7.68]
[1757414368293,1.92072094,218.61,218.51,7.68]
[1757414368493,2.2,218.6,218.53,1.92072094]
[1757414368890,2.2,218.6,218.54,0.03256771]
[1757414369492,1.92072094,218.63,218.55,1.92072094]
[1757414369687,2.2,218.62,218.55,1.92072094]
[1757414372895,2.2,218.62,218.57,1.92072094]
[1757414373104,4.12072094,218.65,218.57,1.92072094]
[1757414373797,4.12072094,218.65,218.59,0.03118166]
[1757414374302,2.2,218.65,218.59,0.03118166]
[1757414386005,5.09460143,218.64,218.59,0.03118166]
[1757414386410,5.09460143,218.63,218.59,0.03118166]
[1757414387004,2.23,218.62,218.59,0.03118166]
[1757414387202,5.09460143,218.63,218.59,0.03118166]
[1757414387410,2.23,218.62,218.59,0.03118166]
[1757414388012,5.09460143,218.63,218.59,0.03118166]
[1757414388510,2.23,218.62,218.59,0.03118166]
[1757414388911,5.09460143,218.63,218.59,0.03118166]
[1757414389904,2.23,218.62,218.59,0.03118166]
[1757414390106,5.09460143,218.62,218.59,0.03118166]
[1757414390513,2.23,218.61,218.59,0.03118166]
[1757414390712,5.09460143,218.62,218.59,0.03118166]
[1757414390912,2.23,218.61,218.59,0.03118166]
[1757414391114,7.32460143,218.61,218.59,0.03118166]
[1757414391414,2.23,218.6,218.59,0.03118166]
[1757414392109,7.32460143,218.6,218.59,0.03118166]
[1757414392414,2.23,218.6,218.59,0.03118166]
[1757414395818,49.33,218.6,218.59,0.03118166]
[1757414396517,2.23,218.6,218.59,0.03118166]
[1757414396718,98.97,218.6,218.59,0.03118166]
[1757414400517,104.07817824,218.6,218.59,0.03118166]
[1757414402925,120.59817824,218.6,218.59,0.03118166]
[1757414403223,115.49,218.6,218.59,0.03118166]
[1757414403923,2.23,218.6,218.59,0.03118166]
[1757414404115,115.49,218.6,218.59,0.03118166]
[1757414404726,2.23,218.6,218.59,0.03118166]
[1757414405024,115.49,218.6,218.59,0.03118166]
[1757414406522,2.23,218.6,218.59,0.03118166]
[1757414406929,115.49,218.6,218.59,0.03118166]
[1757414407228,2.23,218.6,218.59,0.03118166]
[1757414407429,115.49,218.6,218.59,0.03118166]
[1757414407728,2.23,218.6,218.59,0.03118166]